[Event "44th Chess Olympiad Open 2022"]
[Site "Chennai"]
[Date "2022.07.30"]
[Round "2.37"]
[White "Terry, Renato"]
[Black "Lorenzana, Wilson Estuardo"]
[Result "1/2-1/2"]
[WhiteElo "2502"]
[BlackElo "2182"]
[Annotator "TA"]
[PlyCount "90"]
[EventDate "2022.??.??"]
[TimeControl "60"]

{[%evp 9,90,-7,1,-7,-9,-8,-11,-19,42,7,26,20,27,12,16,28,34,0,0,0,2,2,2,2,2,0,
9,0,13,14,7,0,24,0,0,0,0,0,12,18,18,14,14,0,28,0,34,18,69,64,68,0,-10,0,0,0,0,
0,0,-26,-16,-55,-55,-62,-22,-132,-123,-118,-77,-89,-41,-51,-65,-116,-45,-80,
-36,-39,-43,-51,-36,-39,-33]} 1. Nf3 {[%emt 0:00:04]} c5 {[%emt 0:00:29]} 2. e3
{[%emt 0:02:44]} Nf6 {[%emt 0:01:55]} 3. d4 {[%emt 0:00:10]} e6 {[%emt 0:03:02]
} 4. Bd3 {[%emt 0:06:16]} d5 {[%emt 0:05:28]} 5. c3 {[%emt 0:04:16]} Nbd7 {
[%emt 0:01:29]} 6. Ne5 {[%emt 0:18:19] D05: Colle System with ...e6.} Nxe5 {
[%emt 0:11:30]} 7. dxe5 {[%emt 0:00:48]} Nd7 {[%emt 0:00:11]} 8. f4 {[%emt 0:
00:00] The position is equal.} g6 {[%emt 0:06:40] [#]} (8... c4 $11 9. Bc2 b5)
9. c4 $146 {[%emt 0:21:55]} ({Predecessor:} 9. h4 f6 10. h5 fxe5 11. hxg6 e4
12. Qh5 Bg7 13. gxh7+ Kf8 14. Be2 Nf6 15. Qg5 {1-0 (26) Castellanos Gomez,A 
(2238)-Silva Rodriguez,F (2235) Almansa 2017}) 9... dxc4 {[%emt 0:08:24]} 10.
Bxc4 {[%emt 0:00:06]} Nb6 {[%emt 0:00:04] [#] ...Qxd1+ is the strong threat.}
11. Qxd8+ {[%emt 0:08:37]} (11. Bd3 {seems wilder.} c4 12. Be4 Qxd1+ 13. Kxd1
Nd5 14. Nc3) 11... Kxd8 {[%emt 0:00:06][%cal Ye8d8,Yd8c7,Yc7c6]} 12. Be2 {
[%emt 0:01:30]} Bd7 {[%emt 0:03:34]} 13. Bf3 {[%emt 0:02:04]} Kc7 {[%emt 0:00:
37]} 14. Nc3 {[%emt 0:00:50]} Bc6 {[%emt 0:00:25]} 15. Bxc6 {[%emt 0:03:16]}
Kxc6 {[%emt 0:00:08]} 16. Ke2 {[%emt 0:00:26]} Be7 {[%emt 0:00:00]} 17. Ne4 {
[%emt 0:00:37]} Nd5 {[%emt 0:04:15]} 18. Bd2 {[%emt 0:00:20]} b6 {[%emt 0:03:
09]} 19. Rac1 {[%emt 0:07:26]} a5 {[%emt 0:02:31]} 20. a4 {[%emt 0:00:00]} Rad8
{[%emt 0:09:25]} 21. Rhf1 {[%emt 0:03:47]} Rd7 {[%emt 0:08:07]} 22. Be1 {
[%emt 0:00:25]} Rhd8 {[%emt 0:02:07]} 23. g4 {[%emt 0:00:48]} f5 {[%emt 0:04:
49]} 24. exf6 {[%emt 0:00:31]} Nxf6 {[%emt 0:00:23]} 25. Nf2 {[%emt 0:01:11]}
Nd5 {[%emt 0:01:33][%cal Ye6e5]} 26. Ne4 {[%emt 0:14:49]} h6 {[%emt 0:02:31]} (
26... Nf6 $5 {[%cal Rf6e4]} 27. Nf2 Nd5 $11) 27. Rf3 {[%emt 0:00:00]} Nf6 {
[%emt 0:02:21]} 28. Nf2 {[%emt 0:00:04]} g5 {[%emt 0:00:11]} ({Black should try
} 28... Bd6 $11) 29. Rc4 $14 {[%emt 0:00:47]} Rg8 {[%emt 0:00:00][%cal Yd8g8,
Yg8g6,Yg6e6]} 30. f5 {[%emt 0:00:31]} (30. Nd3 $14) 30... exf5 $11 {[%emt 0:04:
21]} 31. Rxf5 {[%emt 0:00:01]} Rg6 {[%emt 0:00:35]} 32. Nd3 {[%emt 0:01:09] [#]
Strongly threatening Ne5+.} Bd6 {[%emt 0:01:12]} 33. h3 {[%emt 0:00:07]} Re7 {
[%emt 0:03:27]} 34. Kf3 {[%emt 0:00:12]} Nd7 {[%emt 0:02:17]} 35. b3 {[%emt 0:
00:39]} Rge6 $1 {[%emt 0:00:25]} 36. Bd2 {[%emt 0:00:55]} Bh2 {[%emt 0:02:34]
White should prevent ...Bg1.} 37. Kg2 {[%emt 0:00:13] Against Bg1} (37. b4 $11)
37... Rd6 $17 {[%emt 0:01:02]} 38. Rc3 {[%emt 0:00:35]} Be5 {[%emt 0:01:47]}
39. Nxe5+ {[%emt 0:00:08]} Nxe5 {[%emt 0:00:00]} (39... Rxe5 $17 40. Be1 Rxf5
41. gxf5 Nf6) 40. Be1 $1 $15 {[%emt 0:00:00]} Nd3 {[%emt 0:00:25]} 41. Bf2 {
[%emt 0:31:03]} (41. Bg3 $1 $15 Rxe3 42. Bxd6 Ne1+ 43. Kf1 Rxc3 44. Rf6 Rf3+
45. Rxf3 Nxf3 46. Bf8) 41... Ree6 {[%emt 0:00:00]} ({Black should play} 41...
Nb2 $17 {Hoping for ...Nd1.} 42. Bg3 Rde6) 42. Kf3 {[%emt 0:00:00]} Nxf2 {
[%emt 0:00:00]} 43. Kxf2 {[%emt 0:00:00] Black is slightly better.} Rd2+ {
[%emt 0:00:00]} 44. Kf3 {[%emt 0:00:00]} Rh2 {[%emt 0:00:00]} 45. Kg3 {[%emt 0:
00:00]} Re2 {[%emt 0:00:00] Weighted Error Value: White=0.17 (very precise) /
Black=0.15 (very precise)} 1/2-1/2

[Event "44th Chess Olympiad Open 2022"]
[Site "Chennai"]
[Date "2022.07.30"]
[Round "2.37"]
[White "Juarez Flores, Carlos A."]
[Black "Escalante Ramirez, Brian Sebasti"]
[Result "1-0"]
[WhiteElo "2335"]
[BlackElo "2496"]
[Annotator "ChessBase"]
[PlyCount "85"]
[EventDate "2022.??.??"]
[TimeControl "60"]

1. d4 {[%emt 0:00:03]} e6 {[%emt 0:00:40]} 2. Nf3 {[%emt 0:00:41]} Nf6 {
[%emt 0:00:14]} 3. g3 {[%emt 0:00:54]} c5 {[%emt 0:00:23]} 4. c4 {[%emt 0:00:
00]} cxd4 {[%emt 0:02:30]} 5. Nxd4 {[%emt 0:00:22]} d5 {[%emt 0:00:03]} 6. Bg2
{[%emt 0:00:32]} e5 {[%emt 0:00:22]} 7. Nc2 {[%emt 0:03:11]} d4 {[%emt 0:08:58]
} 8. O-O {[%emt 0:02:13]} Nc6 {[%emt 0:00:18]} 9. e3 {[%emt 0:01:51]} d3 {
[%emt 0:07:53]} 10. Ne1 {[%emt 0:00:29]} e4 {[%emt 0:00:58]} 11. Nc3 {[%emt 0:
00:00]} Bb4 {[%emt 0:01:03]} 12. Bd2 {[%emt 0:12:12]} Bg4 {[%emt 0:01:56]} 13.
f3 {[%emt 0:01:19]} exf3 {[%emt 0:00:07]} 14. Bxf3 {[%emt 0:00:25]} Bh3 {
[%emt 0:01:19]} 15. Rf2 {[%emt 0:04:23]} O-O {[%emt 0:01:07]} 16. Nd5 {[%emt 0:
00:00]} Nxd5 {[%emt 0:11:34]} 17. Bxd5 {[%emt 0:07:52]} Be6 {[%emt 0:06:43]}
18. Bxb4 {[%emt 0:06:48]} Nxb4 {[%emt 0:01:18]} 19. e4 {[%emt 0:00:04]} Bxd5 {
[%emt 0:05:32]} 20. exd5 {[%emt 0:06:40]} b5 {[%emt 0:08:24]} 21. Nxd3 {
[%emt 0:00:40]} Nxd3 {[%emt 0:00:38]} 22. Qxd3 {[%emt 0:00:02]} bxc4 {[%emt 0:
00:00]} 23. Qxc4 {[%emt 0:00:02]} Qb6 {[%emt 0:00:28]} 24. Rd1 {[%emt 0:00:23]}
Rad8 {[%emt 0:08:16]} 25. Qd4 {[%emt 0:02:40]} Qa6 {[%emt 0:00:29]} 26. d6 {
[%emt 0:03:38]} Qxa2 {[%emt 0:00:27]} 27. d7 {[%emt 0:00:12]} Qb3 {[%emt 0:00:
00]} 28. Ra1 {[%emt 0:06:35]} Rb8 {[%emt 0:13:37]} 29. Rxa7 {[%emt 0:01:45]}
Rfd8 {[%emt 0:00:01]} 30. Re2 {[%emt 0:04:13]} h5 {[%emt 0:01:11]} 31. Ra5 {
[%emt 0:01:46]} Qf3 {[%emt 0:02:12]} 32. Rg5 {[%emt 0:03:54]} g6 {[%emt 0:00:
00]} 33. Rge5 {[%emt 0:00:11]} Qc6 {[%emt 0:00:02]} 34. Re7 {[%emt 0:01:33]}
Rf8 {[%emt 0:00:38]} 35. b4 {[%emt 0:02:41]} Ra8 {[%emt 0:00:51]} 36. Qe4 {
[%emt 0:02:02]} Ra1+ {[%emt 0:01:44]} 37. Re1 {[%emt 0:04:33]} Qb6+ {[%emt 0:
00:00]} 38. Kh1 {[%emt 0:00:36]} Ra2 {[%emt 0:02:48]} 39. Re8 {[%emt 0:00:26]}
Rd2 {[%emt 0:00:02]} 40. Qa8 {[%emt 0:01:40]} Qf2 {[%emt 0:01:13]} 41. Rxf8+ {
[%emt 0:30:08]} Kg7 {[%emt 0:03:18]} 42. Rg8+ {[%emt 0:00:00]} Kh6 {[%emt 0:00:
00]} 43. Qf8+ {[%emt 0:00:00]} 1-0

[Event "44th Chess Olympiad Open 2022"]
[Site "Chennai"]
[Date "2022.07.30"]
[Round "2.37"]
[White "Galvez Dastin, Eduardo"]
[Black "Vera Siguenas, Deivy"]
[Result "1-0"]
[WhiteElo "2152"]
[BlackElo "2503"]
[Annotator "TA"]
[PlyCount "69"]
[EventDate "2022.??.??"]
[TimeControl "60"]

{[%evp 9,69,0,0,0,0,0,0,-2,2,0,-1,0,-6,0,4,13,0,0,0,11,15,-31,43,17,14,37,43,
31,53,27,106,86,98,107,231,231,405,375,572,558,704,693,577,163,406,354,289,145,
129,43,38,43,47,30,352,352,352,352,337,337,291,290]} 1. d4 {[%emt 0:00:04]} Nf6
{[%emt 0:00:04]} 2. c4 {[%emt 0:00:05]} e6 {[%emt 0:00:03]} 3. Nc3 {[%emt 0:00:
00]} Bb4 {[%emt 0:00:03]} 4. e3 {[%emt 0:00:05]} O-O {[%emt 0:00:20]} 5. Bd2 {
[%emt 0:00:05]} c5 {[%emt 0:00:44]} 6. a3 {[%emt 0:07:51] E46: Nimzo-Indian:
Rubinstein: 4 e3 0-0 5 Ne2 without early Bd3.} Bxc3 {[%emt 0:01:24]} 7. Bxc3 {
[%emt 0:00:06]} Ne4 {[%emt 0:00:09]} 8. Rc1 {[%emt 0:07:48] The position is
equal.} b6 {[%emt 0:03:06]} 9. Nf3 {[%emt 0:08:04]} Bb7 {[%emt 0:02:09]} 10.
Bd3 {[%emt 0:01:41]} Nxc3 {[%emt 0:03:25]} 11. Rxc3 {[%emt 0:00:07]} cxd4 {
[%emt 0:00:12]} 12. exd4 {[%emt 0:03:40] [#]} Qf6 $146 {[%emt 0:02:40]} ({
Predecessor:} 12... d5 13. Ne5 g6 14. h4 dxc4 15. Bxc4 Nc6 16. h5 Nxe5 17. dxe5
Qxd1+ 18. Kxd1 Bxg2 {0-1 (39) Budisavljevic,L (2457)-Andreev,E (2420) Belgrade
2020}) 13. Bb1 {[%emt 0:10:29]} d6 {[%emt 0:01:49]} 14. O-O {[%emt 0:12:52]}
Nd7 {[%emt 0:00:52]} 15. d5 {[%emt 0:06:47]} (15. Qd3 $11 g6 16. Qd2) 15... e5
{[%emt 0:07:22]} (15... exd5 $15 16. cxd5 g6) 16. Nd2 $40 {[%emt 0:09:40][%cal
Yf3d2,Yd2e4,Ye4g5,Yg5h3,Yh3f4] White mounts an attack.} g6 {[%emt 0:00:00]
Prevents Qh5.} 17. Ne4 {[%emt 0:11:46]} Qe7 {[%emt 0:00:11]} 18. Qd2 {[%emt 0:
00:14]} Nc5 {[%emt 0:13:29]} 19. Ng5 {[%emt 0:01:54][%cal Yg5h7] aiming for
Nxh7!} Bc8 {[%emt 0:32:27]} (19... f6 $11 20. Nxh7 Qxh7) 20. b4 $16 {[%emt 0:
02:31]} Nb7 {[%emt 0:00:05]} 21. f4 {[%emt 0:03:09] f5 is the strong threat.
White is much more active.} h6 {[%emt 0:04:01]} (21... f6 $16) 22. Nh3 $1 $18 {
[%emt 0:02:53]} ({Don't do} 22. Ne4 $6 f5 $16) 22... f5 $2 {[%emt 0:00:00]} (
22... Bxh3 {was worth a try.} 23. Rxh3 exf4 24. Qxf4 (24. Rxf4 Rfe8 $16) 24...
Qg5 25. Rxh6 Qxf4 26. Rxf4 Kg7) 23. fxe5 {[%emt 0:00:35]} Qxe5 {[%emt 0:00:00]}
(23... dxe5 $142 24. c5 Qh4) 24. Nf4 {[%emt 0:07:23]} Kh7 {[%emt 0:00:00]} 25.
Re1 {[%emt 0:00:22]} Qf6 {[%emt 0:00:40]} 26. Rce3 $2 {[%emt 0:00:40]} (26. Rh3
{[%cal Yf4g6] Black must now prevent Nxg6!} h5 27. Qe3) 26... Bd7 $2 {[%emt 0:
00:17]} (26... Nd8 {keeps fighting.} 27. c5 bxc5) 27. Re7+ {[%emt 0:00:00]} Rf7
{[%emt 0:00:03] [#]} 28. Rxf7+ {[%emt 0:01:08]} (28. R7e6 $1 $18 {[%cal Re6f6]}
Bxe6 29. dxe6) 28... Qxf7 $16 {[%emt 0:00:05]} 29. Qd4 {[%emt 0:00:28]} (29. h4
$16) 29... Re8 $14 {[%emt 0:00:50]} 30. Rxe8 {[%emt 0:00:00]} Qxe8 {[%emt 0:00:
04][%cal Re8e1]} 31. Kf2 {[%emt 0:00:07][%cal Yg2g4] Against Qe1+} Qe7 $2 {
[%emt 0:00:42] [#]} (31... Qf8 $11 {and Black stays safe.}) 32. Qh8+ $3 $18 {
[%emt 0:01:03]} Kxh8 {[%emt 0:00:05]} 33. Nxg6+ {[%emt 0:00:04]} Kg7 {[%emt 0:
00:03]} 34. Nxe7 {[%emt 0:07:34]} Kf6 {[%emt 0:09:48]} 35. Nc6 {[%emt 0:00:00]
Weighted Error Value: White=0.42/ Black=0.59} 1-0

[Event "44th Chess Olympiad Open 2022"]
[Site "Chennai"]
[Date "2022.07.30"]
[Round "2.38"]
[White "Adly, Ahmed"]
[Black "Tapia Ostolaza, Alexei"]
[Result "1-0"]
[WhiteElo "2582"]
[BlackElo "2201"]
[Annotator "TA"]
[PlyCount "81"]
[EventDate "2022.??.??"]
[TimeControl "60"]

{[%evp 19,81,21,44,37,90,77,75,70,67,81,60,74,66,16,13,14,37,0,0,-7,0,0,-9,0,
31,37,45,26,29,25,60,71,94,81,87,81,79,0,0,0,58,18,134,126,173,137,145,154,165,
150,343,297,408,413,1896,25,1743,1577,5073,5022,2687,2569,1863,1806]} 1. Nf3 {
[%emt 0:00:11]} d5 {[%emt 0:00:27]} 2. g3 {[%emt 0:00:06]} Nf6 {[%emt 0:00:22]}
3. Bg2 {[%emt 0:00:04]} c5 {[%emt 0:03:11]} 4. O-O {[%emt 0:00:05]} Nc6 {
[%emt 0:00:10]} 5. d4 {[%emt 0:00:05]} e6 {[%emt 0:02:23]} 6. c4 {[%emt 0:00:
00]} dxc4 {[%emt 0:01:12]} 7. Qa4 {[%emt 0:00:33]} Bd7 {[%emt 0:04:47]} 8. Qxc4
{[%emt 0:00:13]} cxd4 {[%emt 0:04:52]} 9. Nxd4 {[%emt 0:07:09]} Rc8 {[%emt 0:
00:00]} 10. Nc3 {[%emt 0:00:04]} Be7 {[%emt 0:06:55]} 11. Rd1 {[%emt 0:00:14]
E04: Open Catalan: 5 Nf3.} Qb6 {[%emt 0:06:03] [#]} (11... Na5 $14 12. Qd3 O-O)
12. Nxc6 $1 $16 {[%emt 0:09:40]} Bxc6 {[%emt 0:00:40]} 13. Be3 {[%emt 0:00:01]
White is better.} Qa5 {[%emt 0:00:52]} 14. Bxc6+ {[%emt 0:00:04]} Rxc6 {
[%emt 0:00:45]} 15. Qb3 {[%emt 0:00:01]} Qa6 {[%emt 0:16:19]} 16. Nb5 {[%emt 0:
00:00]} (16. Rd4 $1 $14 Qb6 17. Qxb6 axb6 18. Ra4) 16... O-O $11 {[%emt 0:00:
00]} 17. Nxa7 {[%emt 0:11:20]} Rc4 {[%emt 0:02:28] [#]} 18. a4 $146 {[%emt 0:
00:00]} ({Predecessor:} 18. a3 Nd5 19. Nb5 Nxe3 20. fxe3 Rc5 21. a4 h5 22. Rac1
Rfc8 23. Rxc5 Rxc5 24. Rd7 {½-½ (41) Rogule,L (2264)-Chernyak,V (2180) Riga
2019}) 18... Nd5 {[%emt 0:03:08]} 19. Nb5 {[%emt 0:00:09]} Rb4 {[%emt 0:02:54]}
20. Qc2 $36 {[%emt 0:00:11] Hoping for Bd2. White fights for an advantage.}
Nxe3 {[%emt 0:02:17]} 21. fxe3 {[%emt 0:00:03]} Qb6 {[%emt 0:01:49]} 22. Rd4 {
[%emt 0:02:42]} e5 {[%emt 0:05:49]} 23. Re4 {[%emt 0:00:02]} Qg6 {[%emt 0:00:
10]} 24. Rc4 {[%emt 0:00:01]} Qb6 {[%emt 0:01:47]} 25. Kf2 {[%emt 0:00:00]} Qh6
{[%emt 0:09:52]} 26. h4 {[%emt 0:00:35]} Rxc4 {[%emt 0:09:02]} 27. Qxc4 {
[%emt 0:00:04]} g5 {[%emt 0:00:26] [#]} 28. Rh1 {[%emt 0:07:23]} ({White
should try} 28. hxg5 $1 $16 Bxg5 29. Kg2 (29. Qg4 Qh2+ 30. Kf3 h6 $14)) 28...
gxh4 {[%emt 0:02:28]} 29. gxh4 {[%emt 0:00:03]} b6 {[%emt 0:02:11]} (29... Kh8
$11) 30. Nc3 {[%emt 0:00:49]} Bc5 {[%emt 0:01:33]} (30... Kh8 $11) 31. Qg4+ $16
{[%emt 0:01:33]} Kh8 {[%emt 0:00:49]} (31... Qg6 $16 32. Rg1 Kh8) 32. Qg5 $18 {
[%emt 0:00:16] Active counter play!} Qxg5 {[%emt 0:01:48]} 33. hxg5 $16 {
[%emt 0:00:04] Endgame KRB-KRN} f5 {[%emt 0:01:07]} 34. Nd5 {[%emt 0:07:21]
aiming for b4.} f4 $2 {[%emt 0:01:10]} (34... Rd8 $16) 35. Kf3 $18 {[%emt 0:00:
12]} fxe3+ {[%emt 0:02:17]} 36. Nf6 {[%emt 0:00:12][%csl Gf6][%cal Rh1h7]} Kg7
{[%emt 0:01:50]} (36... e4+ $142 37. Kxe4 Rf7) 37. Rxh7+ {[%emt 0:00:21]} Kg6 {
[%emt 0:00:07]} 38. Kg4 {[%emt 0:00:04] Rh6+ is the strong threat. White is
clearly winning.} Bd4 {[%emt 0:00:35]} 39. Rh6+ {[%emt 0:00:18]} Kf7 {[%emt 0:
00:29]} 40. Kf5 {[%emt 0:00:13][%cal Rh6h7]} Ke7 {[%emt 0:00:36]} 41. Rh7+ {
[%emt 0:30:34] Weighted Error Value: White=0.09 (flawless) /Black=0.32} 1-0

[Event "44th Chess Olympiad Open 2022"]
[Site "Chennai"]
[Date "2022.07.30"]
[Round "2.38"]
[White "Sanchez Alvarez, Roberto Carlos"]
[Black "Amin, Bassem"]
[Result "1-0"]
[WhiteElo "2431"]
[BlackElo "2680"]
[Annotator "TA"]
[PlyCount "65"]
[EventDate "2022.??.??"]
[TimeControl "60"]

{[%evp 9,65,31,44,33,35,26,83,40,43,39,25,23,30,7,1,-34,-43,-49,-52,-10,35,0,
75,70,91,106,100,70,79,0,8,0,0,0,0,0,12,3,20,0,2,4,106,105,132,70,348,354,514,
506,489,478,686,684,682,660,633,566]} 1. d4 {[%emt 0:00:11]} Nf6 {[%emt 0:00:
00]} 2. c4 {[%emt 0:00:19]} g6 {[%emt 0:00:23]} 3. Nc3 {[%emt 0:00:11]} Bg7 {
[%emt 0:00:11]} 4. e4 {[%emt 0:00:12]} d6 {[%emt 0:00:05]} 5. h3 {[%emt 0:00:
00]} Nbd7 {[%emt 0:03:35]} 6. Be3 {[%emt 0:00:13] E71: King's Indian: 4 e4 d6
5 h3.} e5 {[%emt 0:00:28]} 7. d5 {[%emt 0:00:11]} h5 {[%emt 0:00:17]} (7... Nc5
$11) 8. Qd2 {[%emt 0:15:20] White is better.} Nc5 {[%emt 0:02:59]} 9. f3 {
[%emt 0:01:05]} h4 {[%emt 0:00:55]} 10. Bg5 {[%emt 0:11:28] [#]} Rh5 $146 {
[%emt 0:05:35][%cal Yf6e4]} ({Predecessor:} 10... Bf8 11. b4 Ncd7 12. Bd3 Be7
13. Be3 a5 14. bxa5 c6 15. Nge2 Qxa5 16. O-O Nh5 {0-1 (32) Tsolakidou,S (2377)
-Theodorou,N (2576) Charlotte 2021}) 11. b4 {[%emt 0:09:21]} Ncd7 {[%emt 0:00:
00]} 12. a3 {[%emt 0:01:15]} a5 {[%emt 0:05:19] Strongly threatening ...axb4.}
13. Rb1 {[%emt 0:21:43]} axb4 {[%emt 0:03:31]} 14. axb4 {[%emt 0:00:11]} c5 {
[%emt 0:04:27]} (14... Rxg5 $5 15. Qxg5 Nh5 $14) 15. Nb5 {[%emt 0:00:45]} Ra6 {
[%emt 0:06:26]} (15... Rxg5 $1 $11 {keeps the balance.} 16. Nxd6+ (16. Qxg5 Ke7
$14) 16... Ke7 17. Nxc8+ Qxc8 18. Qxg5 cxb4) 16. Be3 $1 $36 {[%emt 0:00:58]
Black is under pressure.} Bf8 {[%emt 0:03:19]} 17. Bd3 $1 {[%emt 0:00:00]} cxb4
{[%emt 0:00:21]} 18. Qxb4 {[%emt 0:02:22]} Nc5 {[%emt 0:00:15]} 19. Bxc5 {
[%emt 0:00:24]} ({White should play} 19. Bc2 $16) 19... dxc5 $11 {[%emt 0:00:
03]} 20. Qb2 {[%emt 0:02:04]} Bh6 {[%emt 0:04:21]} 21. Kf2 {[%emt 0:00:00]} Kf8
{[%emt 0:07:02]} 22. Ne2 {[%emt 0:00:23]} Ne8 {[%emt 0:00:34]} 23. Rhd1 {
[%emt 0:05:43]} Bd7 {[%emt 0:12:37]} 24. Bc2 {[%emt 0:01:41]} Kg8 {[%emt 0:03:
47]} ({Don't play} 24... Qg5 25. Kf1 $14 (25. f4 Qf6 $11)) 25. Ra1 {[%emt 0:04:
10]} Qf6 {[%emt 0:09:59]} ({Don't take} 25... Qg5 26. Kf1 $14) (25... Bxb5 $11
26. Qxb5 Nd6) 26. Rxa6 $16 {[%emt 0:03:21] Active counter play!} Qxa6 {[%emt 0:
08:06] [#]} 27. d6 {[%emt 0:05:22]} (27. Nbc3 $1 $16 {Black must now prevent
Ra1.} Qa8 28. d6) 27... Bf8 $2 {[%emt 0:01:16] [#] This costs Black the game.}
(27... Qb6 $1 $14) 28. Nc7 $1 $18 {[%emt 0:01:19]} ({Stronger than} 28. Ra1 Qb6
$11) 28... Qc6 {[%emt 0:11:47]} (28... Qxc4 $142 29. Nxe8 Bxe8) 29. Nxe8 {
[%emt 0:00:37] White is clearly winning.} Bxe8 {[%emt 0:00:00]} 30. Nc3 {
[%emt 0:00:24]} Bxd6 {[%emt 0:00:00]} (30... Qc8 $142 31. Nd5 Qd8) 31. Ba4 {
[%emt 0:01:02] Skewer} b5 {[%emt 0:03:45]} 32. Bxb5 {[%emt 0:00:19]} Qb6 {
[%emt 0:00:19]} 33. Nd5 {[%emt 0:00:10] Weighted Error Value: White=0.13 (very
precise) /Black=0.50} 1-0

[Event "44th Chess Olympiad Open 2022"]
[Site "Chennai"]
[Date "2022.07.30"]
[Round "2.38"]
[White "Wageih, Kareim"]
[Black "Leon Archibaldo, Orlando Andres"]
[Result "1-0"]
[WhiteElo "2387"]
[BlackElo "2193"]
[Annotator "TA"]
[PlyCount "95"]
[EventDate "2022.??.??"]
[TimeControl "60"]

{[%evp 14,95,19,21,32,21,56,50,60,36,62,70,93,75,119,109,189,188,224,261,257,
250,242,206,277,269,207,207,341,306,265,133,130,88,410,383,367,362,321,87,87,
87,87,87,116,116,116,66,95,66,66,66,66,66,74,74,192,115,122,74,74,86,576,523,
692,679,665,604,585,541,2047,1562,6311,6086,29981,29982,29983,29984,29984,
29985,29994,29995,29995,29996]} 1. e4 {[%emt 0:00:03]} c5 {[%emt 0:00:20]} 2.
Nf3 {[%emt 0:00:03]} e6 {[%emt 0:00:25]} 3. Nc3 {[%emt 0:00:05]} a6 {[%emt 0:
00:00]} 4. d4 {[%emt 0:00:03]} cxd4 {[%emt 0:00:10]} 5. Nxd4 {[%emt 0:00:01]}
Qc7 {[%emt 0:00:38]} 6. Bd3 {[%emt 0:00:44]} Nf6 {[%emt 0:00:37]} 7. Qe2 {
[%emt 0:01:17]} d6 {[%emt 0:01:44]} 8. f4 {[%emt 0:00:07]} Nbd7 {[%emt 0:02:36]
B82: Sicilian Scheveningen: 6 f4.} 9. g4 {[%emt 0:02:08][%cal Yg2g4,Yg4g5]} Nc5
{[%emt 0:01:28]} 10. g5 {[%emt 0:00:12]} Nfd7 {[%emt 0:00:21] White is
slightly better.} 11. Bd2 {[%emt 0:00:12]} b5 {[%emt 0:02:59]} 12. b4 {[%emt 0:
00:41]} Nxd3+ {[%emt 0:02:28]} 13. cxd3 {[%emt 0:00:03]} Bb7 {[%emt 0:00:00]}
14. Rc1 {[%emt 0:00:35][%cal Yc3d5]} Rc8 {[%emt 0:04:30]} (14... Qd8 $16 {
was worth a try.}) 15. O-O $1 $18 {[%emt 0:00:08] [#] Threatens to win with f5.
} Qd8 $146 {[%emt 0:02:01]} ({Predecessor:} 15... Qb8 16. f5 e5 17. Ne6 Bc6 18.
Be3 {1-0 (18) Liu,G (2460)-Pham,L (2354) Hanoi 2018}) 16. f5 $1 {[%emt 0:12:26]
} exf5 {[%emt 0:08:19]} 17. Nd5 {[%emt 0:02:52] Pair of Knights!} (17. Rxf5 g6
18. Rf2 Bg7 $15) (17. exf5+ Ne5 $14) (17. Nxf5 $6 g6 $18) 17... Ne5 {[%emt 0:
14:44]} 18. Nxf5 {[%emt 0:13:07]} (18. Rxf5 Rxc1+ 19. Bxc1 Be7 $11) 18... Bxd5
{[%emt 0:12:59]} 19. exd5 {[%emt 0:00:04]} Rxc1 {[%emt 0:02:12]} 20. Bxc1 {
[%emt 0:00:37] And now d4 would win.} (20. Rxc1 Qd7 $16) 20... Kd7 {[%emt 0:03:
34]} (20... g6 {might work better.}) 21. d4 {[%emt 0:01:20]} Nc4 {[%emt 0:01:
51] [#]} 22. Qg4 {[%emt 0:02:11]} (22. Nxg7 $1 $18 Qe7 23. Qh5 $1) 22... Kc7
$16 {[%emt 0:01:37]} 23. Ne3 {[%emt 0:00:02]} Nxe3 {[%emt 0:05:40]} (23... Qe8
$16) 24. Rxf7+ $18 {[%emt 0:02:24]} ({Less strong is} 24. Bxe3 Qe8 25. Bd2 h6
$16) 24... Be7 {[%emt 0:02:42]} 25. Bxe3 {[%emt 0:00:07]} Kb6 {[%emt 0:00:21]}
26. Qf5 $2 {[%emt 0:20:04]} (26. Rxg7 Qf8 27. Qd7 Qxg7 $11) (26. Bd2 $18 {
is more deadly.}) 26... Rf8 $16 {[%emt 0:02:15]} 27. Rxf8 {[%emt 0:05:07] 0x0.
001eb825a1bedp-1022s more active pieces.} Qxf8 {[%emt 0:00:07] Endgame KQB-KQB}
28. Qd7 {[%emt 0:00:00]} Qd8 {[%emt 0:01:12]} 29. Qc6+ {[%emt 0:03:38]} Ka7 {
[%emt 0:00:08]} 30. h4 {[%emt 0:00:38]} (30. Kf2 $16) 30... h6 $1 $14 {[%emt 0:
02:17]} 31. Bf4 {[%emt 0:07:15] Hoping for Kf2.} hxg5 {[%emt 0:00:34]} 32. hxg5
{[%emt 0:00:01] Kf2 is the strong threat.} Qf8 $1 {[%emt 0:00:24]} 33. Qd7+ {
[%emt 0:04:11]} Kb6 {[%emt 0:00:25]} 34. Be3 {[%emt 0:00:09]} g6 {[%emt 0:00:
47]} (34... Qd8 $16 {was called for.} 35. Qf5 Qg8) 35. Qe6 {[%emt 0:03:51]} (
35. Qc6+ $18 Ka7 36. Qc2) 35... Qg7 {[%emt 0:03:13]} 36. Kg2 {[%emt 0:00:15]} (
36. Qc8 $142 {[%cal Rc8b8]} Qf8 37. Qc6+ Ka7 38. Qc2) 36... Kc7 $16 {[%emt 0:
00:23]} 37. Bf4 $36 {[%emt 0:03:08] White is really pushing.} Bf8 $2 {[%emt 0:
00:12]} (37... Qf8 $16) 38. Qe8 $18 {[%emt 0:02:12] Black must now prevent
Qc6+.} Qe7 {[%emt 0:00:48]} 39. Qxg6 {[%emt 0:07:35]} ({Not} 39. Qc6+ Kd8 $18)
39... Qe2+ {[%emt 0:01:14]} 40. Kg3 {[%emt 0:00:01]} Qe1+ {[%emt 0:00:00]} 41.
Kg4 {[%emt 0:32:14]} Qd1+ {[%emt 0:35:48] [#]} 42. Kf5 $1 {[%emt 0:00:00]
White threatens Qf7+ and mate.} Qd3+ {[%emt 0:00:48]} 43. Kf6 {[%emt 0:00:00]}
Qxd4+ {[%emt 0:00:23]} 44. Ke6 {[%emt 0:00:03] White mates.} ({Weaker is} 44.
Kf5 Qxd5+ 45. Kg4 Qd1+ 46. Kg3 Qe1+ 47. Kh3 Qf1+ 48. Kg4 Qd1+ 49. Kh4 Qh1+ 50.
Kg4 Qd1+ $11) 44... Kb6 {[%emt 0:00:00]} 45. Qf6 {[%emt 0:00:00]} Qe4+ {
[%emt 0:00:00]} 46. Kd7 {[%emt 0:00:00]} Qxd5 {[%emt 0:00:00]} 47. Qd8+ {
[%emt 0:00:00]} Kb7 {[%emt 0:00:00]} 48. Qc8+ {[%emt 0:00:00] Weighted Error
Value: White=0.25 (precise) /Black=0.68} 1-0